Workbook

Sheet Pasiūlymas
A1: Perkantysis subjektas, kuriam teikiamas pasiūlymas: | C1: VŠĮ Kauno klinikinė ligoninė
B3: PASIŪLYMAS
B4: Santechnikos prekių pirkimas
A6: Data: | B6: 2019-09-10
A7: Nr.: | B7: 1540-0910
A8: Vieta: | B8: Kaunas
A10: Tiekėjo arba tiekėjų grupės narių pavadinimas (-ai) | C10: AB "LYTAGRA"
A11: Tiekėjo arba tiekėjo grupės narių juridinio asmens kodas (-ai) (tuo atveju, jei pasiūlymą teikia fizinis asmuo - verslo pažymėjimo Nr. ar pan.) | C11: 133370289
A12: Tiekėjo arba tiekėjo grupės narių PVM mokėtojo kodas (-ai) | C12: LT333702811
A13: Tiekėjų grupės narys, atstovaujantis arba vadovaujantis tiekėjų grupei (pildoma, jei pasiūlymą teikia tiekėjų grupė)
A14: Tiekėjo valdymo ar priežiūros organo narys (-iai) ar kitas asmuo (-ys), turintis (-ys) teisę atstovauti tiekėjui ar jį kontroliuoti, jo vardu priimti sprendimą, sudaryti sandorį | C14: =$C$17 -> Komercijos direktorius Vaidas Povilaitis
A15: Tiekėjo arba atstovaujančio tiekėjų grupės nario adresas, telefono numeris, fakso numeris, el. paštas | C15: Ateities pl. 50, LT-52106,﻿ Kaunas; Tel. Nr.: 8 (37) 405401, El. paštas: lytagra@lytagra.lt
A16: Tiekėjo arba atstovaujančio tiekėjų grupės nario banko pavadinimas, banko kodas, sąskaitos Nr. | C16: AB SEB bankas, banko kodas 70440 A.s. LT48 7044 0600 0309 1303
A17: Asmens, įgalioto pasirašyti sutartį, vardas, pavardė, pareigos | C17: Komercijos direktorius Vaidas Povilaitis
A18: Asmens, atsakingo už pirkimą, vardas, pavardė, telefono numeris, el. paštas | C18: Ieva Laurinaitytė 8 37 405474; i.laurinaityte@lytagra.lt
A24: Siūlomas pirkimo objektas visiškai atitinka pirkimo sąlygose nustatytus reikalavimus ir jo kaina yra:
A28: Nr. | B28: Pavadinimas | C28: Maksimalus kiekis | D28: Mato vienetas | E28: įkainis be PVM, Eur | F28: Suma be PVM, Eur | G28: Siūlomi produktai | H28: Siūlomo produkto parametrai
A29: 1. | B29: Daugiasluoksniai, PPR vamzdžiai , vamzdyno dalys, šildymo sistemos, radiatoriai
A30: 1.1. | B30: Daugiasluoksnis vamzdis PEX/Al/PEX 16x2,0 Tmax -90 | C30: 1000 | D30: m | E30: 0.5 | F30: =IF(ISBLANK(E30),"", PRODUCT(C30,E30)) -> 500 | G30: VAMZDŽIAI AL-PEX 16X2
A31: 1.1.1. | B31: Daugiasluoksnis vamzdis PEX/Al/PEX 16x2,0 Tmax -90 | H31: Daugiasluoksnis vamzdis PEX/AL/PEX. Maks. temp. +95., trumpalaikė max. temp. +110. Max. slėgis - PN 8-10.
A32: 1.2. | B32: Daugiasluoksnis vamzdis PEX/Al/PEX 20x2,0 Tmax -90 | C32: 400 | D32: m | E32: 0.71 | F32: =IF(ISBLANK(E32),"", PRODUCT(C32,E32)) -> 284 | G32: VAMZDŽIAI AL-PEX 20X2
A33: 1.2.1. | B33: Daugiasluoksnis vamzdis PEX/Al/PEX 20x2,0 Tmax -90 | H33: Daugiasluoksnis vamzdis PEX/AL/PEX. Maks. temp. +95., trumpalaikė max. temp. +110. Max. slėgis - PN 8-10.
A34: 1.3. | B34: Daugiasluoksnis vamzdis PCX/AC/PEX 26x2,5 Tmax -90 | C34: 100 | D34: m | E34: 1.6 | F34: =IF(ISBLANK(E34),"", PRODUCT(C34,E34)) -> 160 | G34: VAMZDŽIAI A-PEX 26
A35: 1.3.1. | B35: Daugiasluoksnis vamzdis PEX/Al/PEX 20x2,0 Tmax -90 | H35: Daugiasluoksnis vamzdis PEX/AL/PEX. Maks. temp. +95., trumpalaikė max. temp. +110. Max. slėgis - PN 8-10.
A36: 1.4. | B36: Vamzdžio laikiklis dvigubas plastmasinis daugiasluoksniui vamzdžiui diam. 16, tvirtinti 16-26 | C36: 200 | D36: vnt. | E36: 0.15 | F36: =IF(ISBLANK(E36),"", PRODUCT(C36,E36)) -> 30 | G36: Laikiklis daugiasluoksniam vamzdžiui 16-26
A37: 1.4.1. | B37: Vamzdžio laikiklis dvigubas plastmasinis daugiasluoksniui vamzdžiui diam. 16, tvirtinti 16-26 | H37: Dvigubas laikiklis 16-26
A38: 1.5. | B38: Daugiasluoksnis vamzdis 18x2 | C38: 200 | D38: m | E38: 0.65 | F38: =IF(ISBLANK(E38),"", PRODUCT(C38,E38)) -> 130 | G38: VAMZDŽIAI AL-PEX 18X2
A39: 1.5.1. | B39: Daugiasluoksnis vamzdis 18x2 | H39: Daugiasluoksnis vamzdis PEX/AL/PEX. Maks. temp. +95., trumpalaikė max. temp. +110. Max. slėgis - PN 8-10.
A40: 1.6. | B40: Vamzdis PPRPN 20 karštam vandeniui d20 | C40: 100 | D40: m | E40: =[1]Pasiūlymas!$E$40 -> 0.55 | F40: =IF(ISBLANK(E40),"", PRODUCT(C40,E40)) -> 55 | G40: PPR VAMZDIS KARŠTAM IR ŠALTAM VANDENIUI PN20 D20
A41: 1.6.1. | B41: Vamzdis PPRPN 20 karštam vandeniui d20 | H41: PPR Vamzdis Maks.temp +90C Max slėgis 10-20bar
A42: 1.7. | B42: Vamzdis PPRPN 20 karštam vandeniui d25 | C42: 100 | D42: m | E42: =[1]Pasiūlymas!$E$42 -> 0.87 | F42: =IF(ISBLANK(E42),"", PRODUCT(C42,E42)) -> 87 | G42: PPR VAMZDIS KARŠTAM IR ŠALTAM VANDENIUI PN20 D25
A43: 1.7.1. | B43: Vamzdis PPRPN 20 karštam vandeniui d25 | H43: =[1]Pasiūlymas!$H$43 -> PPR Vamzdis Maks.temp +90C Max slėgis 10-20bar
A44: 1.8. | B44: Vamzdis PPRPN 20 karštam vandeniui d32 | C44: 100 | D44: m | E44: =[1]Pasiūlymas!$E$44 -> 1.45 | F44: =IF(ISBLANK(E44),"", PRODUCT(C44,E44)) -> 145 | G44: PPR VAMZDIS KARŠTAM IR ŠALTAM VANDENIUI PN20 D32
A45: 1.8.1. | B45: Vamzdis PPRPN 20 karštam vandeniui d32 | H45: =[1]Pasiūlymas!$H$45 -> PPR Vamzdis Maks.temp +90C Max slėgis 10-20bar
A46: 1.9. | B46: Vamzdis PPRPN 20 karštam vandeniui d40 | C46: 100 | D46: m | E46: =[1]Pasiūlymas!$E$46 -> 2.15 | F46: =IF(ISBLANK(E46),"", PRODUCT(C46,E46)) -> 215 | G46: PPR VAMZDIS KARŠTAM IR ŠALTAM VANDENIUI PN20 D40
A47: 1.9.1. | B47: Vamzdis PPRPN 20 karštam vandeniui d40 | H47: PPR Vamzdis Maks.temp +90C Max slėgis 10-20bar
A48: 1.10. | B48: Vamzdžiams PPR dviguba mova d20 | C48: 100 | D48: vnt. | E48: =[1]Pasiūlymas!$E$48 -> 0.08 | F48: =IF(ISBLANK(E48),"", PRODUCT(C48,E48)) -> 8 | G48: =[1]Pasiūlymas!$G$48 -> PPR MOVA 20
A49: 1.10.1. | B49: Vamzdžiams PPR dviguba mova d20 | H49: =[1]Pasiūlymas!$H$49 -> PPR Vamzdis Maks.temp +90C Max slėgis 10-20bar
A50: 1.11. | B50: Vamzdžiams PPR dviguba mova d25 | C50: 100 | D50: vnt. | E50: =[1]Pasiūlymas!$E$50 -> 0.11 | F50: =IF(ISBLANK(E50),"", PRODUCT(C50,E50)) -> 11 | G50: =[1]Pasiūlymas!$G$50 -> PPR MOVA 25
A51: 1.11.1. | B51: Vamzdžiams PPR dviguba mova d25 | H51: =[1]Pasiūlymas!$H$51 -> PPR Vamzdis Maks.temp +90C Max slėgis 10-20bar
A52: 1.12. | B52: Vamzdžiams PPR dviguba mova d32 | C52: 50 | D52: vnt. | E52: =[1]Pasiūlymas!$E$52 -> 0.17 | F52: =IF(ISBLANK(E52),"", PRODUCT(C52,E52)) -> 8.5 | G52: =[1]Pasiūlymas!$G$52 -> PPR MOVA 32
A53: 1.12.1. | B53: Vamzdžiams PPR dviguba mova d32 | H53: =[1]Pasiūlymas!$H$53 -> PPR Vamzdis Maks.temp +90C Max slėgis 10-20bar
A54: 1.13. | B54: Vamzdžiams PPR dviguba mova d40 | C54: 50 | D54: vnt. | E54: =[1]Pasiūlymas!$E$54 -> 0.28 | F54: =IF(ISBLANK(E54),"", PRODUCT(C54,E54)) -> 14 | G54: =[1]Pasiūlymas!$G$54 -> PPR MOVA 40
A55: 1.13.1. | B55: Vamzdžiams PPR dviguba mova d40 | H55: =[1]Pasiūlymas!$H$55 -> PPR Vamzdis Maks.temp +90C Max slėgis 10-20bar
A56: 1.14. | B56: PPR vamzdžių laikikliai d20 | C56: 100 | D56: vnt. | E56: =[1]Pasiūlymas!$E$56 -> 0.08 | F56: =IF(ISBLANK(E56),"", PRODUCT(C56,E56)) -> 8 | G56: =[1]Pasiūlymas!$G$56 -> PPR Vamzdžiu laikiliai d20
A57: 1.14.1. | B57: PPR vamzdžių laikikliai d20 | H57: =[1]Pasiūlymas!$G$56 -> PPR Vamzdžiu laikiliai d20
A58: 1.15. | B58: PPR vamzdžių laikikliai d25 | C58: 100 | D58: vnt. | E58: =[1]Pasiūlymas!$E$58 -> 0.1 | F58: =IF(ISBLANK(E58),"", PRODUCT(C58,E58)) -> 10 | G58: =[1]Pasiūlymas!$G$58 -> PPR Vamzdžiu laikiliai d25
A59: 1.15.1. | B59: PPR vamzdžių laikikliai d25 | H59: =[1]Pasiūlymas!$G$58 -> PPR Vamzdžiu laikiliai d25
A60: 1.16. | B60: PPR vamzdžių laikikliai d32 | C60: 50 | D60: vnt. | E60: =[1]Pasiūlymas!$E$60 -> 0.12 | F60: =IF(ISBLANK(E60),"", PRODUCT(C60,E60)) -> 6 | G60: =[1]Pasiūlymas!$G$60 -> PPR Vamzdžiu laikiliai d32
A61: 1.16.1. | B61: PPR vamzdžių laikikliai d32 | H61: =[1]Pasiūlymas!$G$60 -> PPR Vamzdžiu laikiliai d32
A62: 1.17. | B62: PPR vamzdžių laikikliai d40 | C62: 50 | D62: vnt. | E62: =[1]Pasiūlymas!$E$62 -> 0.14 | F62: =IF(ISBLANK(E62),"", PRODUCT(C62,E62)) -> 7 | G62: =[1]Pasiūlymas!$G$62 -> PPR Vamzdžiu laikiliai d40
A63: 1.17.1. | B63: PPR vamzdžių laikikliai d40 | H63: =[1]Pasiūlymas!$G$62 -> PPR Vamzdžiu laikiliai d40
A64: 1.18. | B64: Antgalis srieginis išorinis 16x1/2" suveržiamas | C64: 200 | D64: vnt. | E64: 0.66 | F64: =IF(ISBLANK(E64),"", PRODUCT(C64,E64)) -> 132 | G64: TIESI JUNGTIS SU IŠOR.SR.16X1/2
A65: 1.18.1. | B65: Turi tikti objektui 1.1 | H65: Mežiaga: žalvaris. Sriegiai atitinka ISO 2528. Max. temp. +90. Max. slėgis PN 8-10.
A66: 1.19. | B66: Antgalis srieginis išorinis 16x1/2" presuojamas | C66: 200 | D66: vnt. | E66: 1.31 | F66: =IF(ISBLANK(E66),"", PRODUCT(C66,E66)) -> 262 | G66: PRES. JUNGTIS IŠ. SR. 16X1/2
A67: 1.19.1. | B67: Turi tikti objektui 1.1 | H67: Mežiaga: žalvaris. Atitinka standartą ISO 21003 Max. temp.: -20 / +90. Max. slėgis PN10.
A68: 1.20. | B68: Antgalis srieginis išorinis 20x3/4" suveržiamas | C68: 100 | D68: vnt. | E68: 1.13 | F68: =IF(ISBLANK(E68),"", PRODUCT(C68,E68)) -> 113 | G68: TIESI JUNGTIS SU IŠOR.SR.20X3/4
A69: 1.20.1. | B69: Turi tikti objektui 1.2 | H69: Mežiaga: žalvaris. Sriegiai atitinka ISO 2528. Max. temp. +90. Max. slėgis PN 8-10.
A70: 1.21. | B70: Antgalis srieginis išorinis 20x3/4" presuojamas | C70: 100 | D70: vnt. | E70: 1.95 | F70: =IF(ISBLANK(E70),"", PRODUCT(C70,E70)) -> 195 | G70: PRES. JUNGTIS IŠ. SR. 20X3/4
A71: 1.21.1. | B71: Turi tikti objektui 1.2 | H71: Mežiaga: žalvaris. Atitinka standartą ISO 21003 Max. temp.: -20 / +90. Max. slėgis PN10.
A72: 1.22. | B72: Antgalis srieginis išorinis 26x4/4" suveržiamas | C72: 50 | D72: vnt. | E72: =[1]Pasiūlymas!$E$72 -> 3.08 | F72: =IF(ISBLANK(E72),"", PRODUCT(C72,E72)) -> 154 | G72: =[1]Pasiūlymas!$G$72 -> Užveržiama Jungtis 26*3/4 išorinis sriegis
A73: 1.22.1. | B73: Turi tikti objektui 1.3 | H73: =$H$71 -> Mežiaga: žalvaris. Atitinka standartą ISO 21003 Max. temp.: -20 / +90. Max. slėgis PN10.
A74: 1.23. | B74: Antgalis srieginis išorinis 26x4/4" presuojamas | C74: 50 | D74: vnt. | E74: 3.3 | F74: =IF(ISBLANK(E74),"", PRODUCT(C74,E74)) -> 165 | G74: PRES. JUNGTIS IŠ. SR. 26X1
A75: 1.23.1. | B75: Turi tikti objektui 1.3 | H75: Mežiaga: žalvaris. Atitinka standartą ISO 21003 Max. temp.: -20 / +90. Max. slėgis PN10.
A76: 1.24. | B76: Antgalis srieginis išorinis 26x3/4" suveržiamas | C76: 50 | D76: vnt. | E76: =[1]Pasiūlymas!$E$76 -> 3.08 | F76: =IF(ISBLANK(E76),"", PRODUCT(C76,E76)) -> 154 | G76: =[1]Pasiūlymas!$G$76 -> Užveržiama Jungtis 26*3/4 išorinis sriegis
A77: 1.24.1. | B77: Turi tikti objektui 1.3 | H77: =$H$75 -> Mežiaga: žalvaris. Atitinka standartą ISO 21003 Max. temp.: -20 / +90. Max. slėgis PN10.
A78: 1.25. | B78: Antgalis srieginis išorinis 26x3/4" presuojamas | C78: 50 | D78: vnt. | E78: 2.7 | F78: =IF(ISBLANK(E78),"", PRODUCT(C78,E78)) -> 135 | G78: PRES. JUNGTIS IŠ. SR. 26X3/4
A79: 1.25.1. | B79: Turi tikti objektui 1.3 | H79: Mežiaga: žalvaris. Atitinka standartą ISO 21003 Max. temp.: -20 / +90. Max. slėgis PN10.
A80: 1.26. | B80: Sujungimas daugiasluoksniui vamzdžiui 16x16 suveržiamas | C80: 100 | D80: vnt. | E80: 1.07 | F80: =IF(ISBLANK(E80),"", PRODUCT(C80,E80)) -> 107 | G80: SUJUNGIMAS 16X16
A81: 1.26.1. | B81: Turi tikti objektui 1.1 | H81: Mežiaga: žalvaris. Sriegiai atitinka ISO 2528. Max. temp. +90. Max. slėgis PN 8-10.
A82: 1.27. | B82: Sujungimas daugiasluoksniui vamzdžiui 16x16 presuojamas | C82: 100 | D82: vnt. | E82: 1.77 | F82: =IF(ISBLANK(E82),"", PRODUCT(C82,E82)) -> 177 | G82: PRES. JUNGTIS 16X16
A83: 1.27.1. | B83: Turi tikti objektui 1.3 | H83: Mežiaga: žalvaris. Atitinka standartą ISO 21003 Max. temp.: -20 / +90. Max. slėgis PN10.
A84: 1.28. | B84: Sujungimas daugiasluoksniui vamzdžiui 20x20 suveržiamas | C84: 100 | D84: vnt. | E84: 2.01 | F84: =IF(ISBLANK(E84),"", PRODUCT(C84,E84)) -> 201 | G84: SUJUNGIMAS 20X20
A85: 1.28.1. | B85: Turi tikti objektui 1.2 | H85: Mežiaga: žalvaris. Sriegiai atitinka ISO 2528. Max. temp. +90. Max. slėgis PN 8-10.
A86: 1.29. | B86: Sujungimas daugiasluoksniui vamzdžiui 20x20 presuojamas | C86: 100 | D86: vnt. | E86: 1.99 | F86: =IF(ISBLANK(E86),"", PRODUCT(C86,E86)) -> 199 | G86: PRES. JUNGTIS 20X20
A87: 1.29.1. | B87: Turi tikti objektui 1.2 | H87: Mežiaga: žalvaris. Atitinka standartą ISO 21003 Max. temp.: -20 / +90. Max. slėgis PN10.
A88: 1.30. | B88: Sujungimas daugiasluoksniui vamzdžiui 26x26 suveržiamas | C88: 100 | D88: vnt. | E88: =[1]Pasiūlymas!$E$88 -> 4.7 | F88: =IF(ISBLANK(E88),"", PRODUCT(C88,E88)) -> 470 | G88: =[1]Pasiūlymas!$G$88 -> Sujungimas 26*26
A89: 1.30.1. | B89: Turi tikti objektui 1.3 | H89: =$H$85 -> Mežiaga: žalvaris. Sriegiai atitinka ISO 2528. Max. temp. +90. Max. slėgis PN 8-10.
A90: 1.31. | B90: Sujungimas daugiasluoksniui vamzdžiui 26x26 presuojamas | C90: 100 | D90: vnt. | E90: 3.13 | F90: =IF(ISBLANK(E90),"", PRODUCT(C90,E90)) -> 313 | G90: PRES. JUNGTIS 26X26
A91: 1.31.1. | B91: Turi tikti objektui 1.3 | H91: Mežiaga: žalvaris. Atitinka standartą ISO 21003 Max. temp.: -20 / +90. Max. slėgis PN10.
A92: 1.32. | B92: Antgalis srieginis vidinis 16x1/2" suveržiamas | C92: 200 | D92: vnt. | E92: 0.7 | F92: =IF(ISBLANK(E92),"", PRODUCT(C92,E92)) -> 140 | G92: TIESI JUNGTIS SU VID.SR.16X1/2
A93: 1.32.1. | B93: Turi tikti objektui 1.1 | H93: Mežiaga: žalvaris. Sriegiai atitinka ISO 2528. Max. temp. +90. Max. slėgis PN 8-10.
A94: 1.33. | B94: Antgalis srieginis vidinis 16x1/2" presuojamas | C94: 200 | D94: vnt. | E94: 1.39 | F94: =IF(ISBLANK(E94),"", PRODUCT(C94,E94)) -> 278 | G94: PRES. JUNGTIS VID. SR. 16X1/2
A95: 1.33.1. | B95: Turi tikti objektui 1.1 | H95: Mežiaga: žalvaris. Atitinka standartą ISO 21003 Max. temp.: -20 / +90. Max. slėgis PN10.
A96: 1.34. | B96: Antgalis srieginis vidinis 20x3/4" suveržiamas | C96: 100 | D96: vnt. | E96: 1.14 | F96: =IF(ISBLANK(E96),"", PRODUCT(C96,E96)) -> 114 | G96: TIESI JUNGTIS SU VID.SR.20X3/4
A97: 1.34.1. | B97: Turi tikti objektui 1.2 | H97: Mežiaga: žalvaris. Sriegiai atitinka ISO 2528. Max. temp. +90. Max. slėgis PN 8-10.
A98: 1.35. | B98: Antgalis srieginis vidinis 20x3/4" presuojamas | C98: 100 | D98: vnt. | E98: 2.34 | F98: =IF(ISBLANK(E98),"", PRODUCT(C98,E98)) -> 234 | G98: PRES. JUNGTIS VID. SR. 16X1/2
A99: 1.35.1. | B99: Turi tikti objektui 1.2 | H99: Mežiaga: žalvaris. Atitinka standartą ISO 21003 Max. temp.: -20 / +90. Max. slėgis PN10.
A100: 1.36. | B100: Antgalis srieginis vidinis 26x3/4" suveržiamas | C100: 100 | D100: vnt. | E100: =[1]Pasiūlymas!$E$100 -> 2.89 | F100: =IF(ISBLANK(E100),"", PRODUCT(C100,E100)) -> 289 | G100: =[1]Pasiūlymas!$G$100 -> Tiesi Jungtis 26
A101: 1.36.1. | B101: Turi tikti objektui 1.3 | H101: Tiesi Jungtis 26
A102: 1.37. | B102: Antgalis srieginis vidinis 26x3/4" presuojamas | C102: 100 | D102: vnt. | E102: 2.85 | F102: =IF(ISBLANK(E102),"", PRODUCT(C102,E102)) -> 285 | G102: PRES. JUNGTIS VID. SR. 26X3/4
A103: 1.37.1. | B103: Turi tikti objektui 1.3 | H103: Mežiaga: žalvaris. Atitinka standartą ISO 21003 Max. temp.: -20 / +90. Max. slėgis PN10.
A104: 1.38. | B104: Antgalis srieginis išorinis kampinis 16x1/2" suveržiamas | C104: 100 | D104: vnt. | E104: 0.97 | F104: =IF(ISBLANK(E104),"", PRODUCT(C104,E104)) -> 97 | G104: ALKŪNĖ IŠOR.SR.16X1/2
A105: 1.38.1. | B105: Turi tikti objektui 1.1 | H105: Mežiaga: žalvaris. Sriegiai atitinka ISO 2528. Max. temp. +90. Max. slėgis PN 8-10.
A106: 1.39. | B106: Antgalis srieginis išorinis kampinis 16x1/2" presuojamas | C106: 100 | D106: vnt. | E106: 1.91 | F106: =IF(ISBLANK(E106),"", PRODUCT(C106,E106)) -> 191 | G106: PRES. ALKŪNĖ IŠ. SR. 16X1/2
A107: 1.39.1. | B107: Turi tikti objektui 1.1 | H107: Mežiaga: žalvaris. Atitinka standartą ISO 21003 Max. temp.: -20 / +90. Max. slėgis PN10.
A108: 1.40. | B108: Antgalis srieginis išorinis kampinis 20x3/4" suveržiamas | C108: 100 | D108: vnt. | E108: 1.69 | F108: =IF(ISBLANK(E108),"", PRODUCT(C108,E108)) -> 169 | G108: ALKŪNĖ SU IŠOR.SR.20X3/4
A109: 1.40.1. | B109: Turi tikti objektui 1.2 | H109: Mežiaga: žalvaris. Sriegiai atitinka ISO 2528. Max. temp. +90. Max. slėgis PN 8-10.
A110: 1.41. | B110: Antgalis srieginis išorinis kampinis 20x3/4" presuojamas | C110: 100 | D110: vnt. | E110: 3.56 | F110: =IF(ISBLANK(E110),"", PRODUCT(C110,E110)) -> 356 | G110: PRES. ALKŪNĖ IŠ. SR. 20X3/4
A111: 1.41.1. | B111: Turi tikti objektui 1.2 | H111: Mežiaga: žalvaris. Atitinka standartą ISO 21003 Max. temp.: -20 / +90. Max. slėgis PN10.
A112: 1.42. | B112: Antgalis srieginis išorinis 20x1/2" suveržiamas | C112: 100 | D112: vnt. | E112: 1.07 | F112: =IF(ISBLANK(E112),"", PRODUCT(C112,E112)) -> 107 | G112: TIESI JUNGTIS SU IŠOR.SR.20X1/2
A113: 1.42.1. | B113: Turi tikti objektui 1.2 | H113: Mežiaga: žalvaris. Sriegiai atitinka ISO 2528. Max. temp. +90. Max. slėgis PN 8-10.
A114: 1.43. | B114: Antgalis srieginis išorinis 20x1/2" presuojamas | C114: 100 | D114: vnt. | E114: 2.16 | F114: =IF(ISBLANK(E114),"", PRODUCT(C114,E114)) -> 216 | G114: PRES. ALKŪNĖ IŠ. SR. 20X1/2
A115: 1.43.1. | B115: Turi tikti objektui 1.2 | H115: Mežiaga: žalvaris. Atitinka standartą ISO 21003 Max. temp.: -20 / +90. Max. slėgis PN10.
A116: 1.44. | B116: Antgalis kampinis su tvirtinimu vidinis 16x1/2" suveržiamas | C116: 200 | D116: vnt. | E116: 1.45 | F116: =IF(ISBLANK(E116),"", PRODUCT(C116,E116)) -> 290 | G116: PRIETAIS.ALKŪNĖS 16X1/2
A117: 1.44.1. | B117: Turi tikti objektui 1.1 | H117: Mežiaga: žalvaris. Sriegiai atitinka ISO 2528. Max. temp. +90. Max. slėgis PN 8-10.
A118: 1.45. | B118: Antgalis kampinis su tvirtinimu vidinis 16x1/2" presuojamas | C118: 200 | D118: vnt. | E118: 2.7 | F118: =IF(ISBLANK(E118),"", PRODUCT(C118,E118)) -> 540 | G118: PRES. ALKŪNĖ SU TVIRT. VID. SR. 16X1/2
A119: 1.45.1. | B119: Turi tikti objektui 1.1 | H119: Mežiaga: žalvaris. Atitinka standartą ISO 21003 Max. temp.: -20 / +90. Max. slėgis PN10.
A120: 1.46. | B120: PPR perėjimas su išoriniu metaliniu sriegiu d20x1/2" | C120: 100 | D120: vnt. | E120: 0.82 | F120: =IF(ISBLANK(E120),"", PRODUCT(C120,E120)) -> 82 | G120: PPR ANTGALIS IŠ.SR.20X1/2
A121: 1.46.1. | B121: PPR perėjimas su išoriniu metaliniu sriegiu d20x1/2" | H121: Medžiaga polipropileno kopolimeras Temperatura 90C Max slėgis 20ba
A122: 1.47. | B122: PPR perėjimas su išoriniu metaliniu sriegiu d20x3/4" | C122: 60 | D122: vnt. | E122: 1.26 | F122: =IF(ISBLANK(E122),"", PRODUCT(C122,E122)) -> 75.6 | G122: PPR ANTGALIS IŠ.SR.20X3/4
A123: 1.47.1. | B123: PPR perėjimas su išoriniu metaliniu sriegiu d20x3/4" | H123: Medžiaga polipropileno kopolimeras Temperatura 90C Max slėgis 20ba
A124: 1.48. | B124: PPR perėjimas su išoriniu metaliniu sriegiu d25x3/4" | C124: 50 | D124: vnt. | E124: 1.18 | F124: =IF(ISBLANK(E124),"", PRODUCT(C124,E124)) -> 59 | G124: PPR ANTGALIS IŠ.SR.25x3/4
A125: 1.48.1. | B125: PPR perėjimas su išoriniu metaliniu sriegiu d25x3/4" | H125: Medžiaga polipropileno kopolimeras Temperatura 90C Max slėgis 20ba
A126: 1.49. | B126: PPR perėjimas su išoriniu metaliniu sriegiu d32/1" | C126: 40 | D126: vnt. | E126: 2.27 | F126: =IF(ISBLANK(E126),"", PRODUCT(C126,E126)) -> 90.8 | G126: PPR ANTGALIS IŠ.SR.32x1
A127: 1.49.1. | B127: PPR perėjimas su išoriniu metaliniu sriegiu d32/1" | H127: Medžiaga polipropileno kopolimeras Temperatura 90C Max slėgis 20ba
A128: 1.50. | B128: PPR perėjimas su vidiniu sriegiu d20x1/2" | C128: 100 | D128: vnt. | E128: =[1]Pasiūlymas!$E$128 -> 0.72 | F128: =IF(ISBLANK(E128),"", PRODUCT(C128,E128)) -> 72 | G128: PPR ANTGALIS VID.SR.20X1/2
A129: 1.50.1. | B129: PPR perėjimas su vidiniu sriegiu d20x1/2" | H129: Medžiaga polipropileno kopolimeras Temperatura 90C Max slėgis 20ba
A130: 1.51. | B130: PPR perėjimas su vidiniu sriegiu d20x3/4" | C130: 60 | D130: vnt. | E130: 0.97 | F130: =IF(ISBLANK(E130),"", PRODUCT(C130,E130)) -> 58.2 | G130: PPR ANTGALIS VID.SR.20X3/4
A131: 1.51.1. | B131: PPR perėjimas su vidiniu sriegiu d20x3/4" | H131: Medžiaga polipropileno kopolimeras Temperatura 90C Max slėgis 20ba
A132: 1.52. | B132: PPR perėjimas su vidiniu sriegiu d25x3/4" | C132: 40 | D132: vnt. | E132: 1.02 | F132: =IF(ISBLANK(E132),"", PRODUCT(C132,E132)) -> 40.8 | G132: PPR ANTGALIS IŠ.SR.25x3/4
A133: 1.52.1. | B133: PPR perėjimas su vidiniu sriegiu d25x3/4" | H133: Medžiaga polipropileno kopolimeras Temperatura 90C Max slėgis 20ba
A134: 1.53. | B134: PPR perėjimas su vidiniu sriegiu d32x1" | C134: 20 | D134: vnt. | E134: 2.15 | F134: =IF(ISBLANK(E134),"", PRODUCT(C134,E134)) -> 43 | G134: PPR ANTGALIS IŠ.SR.32x1
A135: 1.53.1. | B135: PPR perėjimas su vidiniu sriegiu d32x1" | H135: Medžiaga polipropileno kopolimeras Temperatura 90C Max slėgis 20ba
A136: 1.54. | B136: PPR kompensatoriai d20 | C136: 20 | D136: vnt. | E136: 0.42 | F136: =IF(ISBLANK(E136),"", PRODUCT(C136,E136)) -> 8.4 | G136: PPR KOMPESACINE KILPA D20
A137: 1.54.1. | B137: PPR kompensatoriai d20 | H137: Medžiaga polipropileno kopolimeras Temperatura 90C Max slėgis 20ba
A138: 1.55. | B138: PPR kompensatoriai d25 | C138: 20 | D138: vnt. | E138: 0.58 | F138: =IF(ISBLANK(E138),"", PRODUCT(C138,E138)) -> 11.6 | G138: PPR KOMPESACINE KILPA D25
A139: 1.55.1. | B139: PPR kompensatoriai d25 | H139: Medžiaga polipropileno kopolimeras Temperatura 90C Max slėgis 20ba
A140: 1.56. | B140: PPR kompensatoriai d32 | C140: 20 | D140: vnt. | E140: 1.54 | F140: =IF(ISBLANK(E140),"", PRODUCT(C140,E140)) -> 30.8 | G140: PPR KOMPESACINE KILPA D32
A141: 1.56.1. | B141: PPR kompensatoriai d32 | H141: Medžiaga polipropileno kopolimeras Temperatura 90C Max slėgis 20ba
A142: 1.57. | B142: PPR kompensatoriai d40 | C142: 20 | D142: vnt. | E142: 1.33 | F142: =IF(ISBLANK(E142),"", PRODUCT(C142,E142)) -> 26.6 | G142: PPR KOMPESACINE KILPA D40
A143: 1.57.1. | B143: PPR kompensatoriai d40 | H143: Medžiaga polipropileno kopolimeras Temperatura 90C Max slėgis 20ba
A144: 1.58. | B144: Antgalis srieginis vidinis 18x1/2" presuojamas | C144: 100 | D144: vnt. | E144: 1.7 | F144: =IF(ISBLANK(E144),"", PRODUCT(C144,E144)) -> 170 | G144: PRES. JUNGTIS VID. SR. 18X1/2
A145: 1.58.1. | B145: Turi tikti objektui 1.5 | H145: Mežiaga: žalvaris. Atitinka standartą ISO 21003 Max. temp.: -20 / +90. Max. slėgis PN10.
A146: 1.59. | B146: Antgalis srieginis vidinis 18x1/2" suveržiamas | C146: 100 | D146: vnt. | E146: 0.98 | F146: =IF(ISBLANK(E146),"", PRODUCT(C146,E146)) -> 98 | G146: TIESI JUNGTIS SU VID.SR.18X1/2
A147: 1.59.1. | B147: Turi tikti objektui 1.5 | H147: Mežiaga: žalvaris. Sriegiai atitinka ISO 2528. Max. temp. +90. Max. slėgis PN 8-10.
A148: 1.60. | B148: Antgalis srieginis vidinis 18x3/4" presuojamas | C148: 100 | D148: vnt. | E148: 2.22 | F148: =IF(ISBLANK(E148),"", PRODUCT(C148,E148)) -> 222 | G148: PRES. JUNGTIS VID. SR. 18X3/4
A149: 1.60.1. | B149: Turi tikti objektui 1.5 | H149: Mežiaga: žalvaris. Atitinka standartą ISO 21003 Max. temp.: -20 / +90. Max. slėgis PN10.
A150: 1.61. | B150: Antgalis srieginis vidinis 18x3/4" suveržiamas | C150: 100 | D150: vnt. | E150: 2.04 | F150: =IF(ISBLANK(E150),"", PRODUCT(C150,E150)) -> 204 | G150: TIESI JUNGTIS VID.SR.18X3/4
A151: 1.61.1. | B151: Turi tikti objektui 1.5 | H151: Mežiaga: žalvaris. Sriegiai atitinka ISO 2528. Max. temp. +90. Max. slėgis PN 8-10.
A152: 1.62. | B152: Antgalis [eurokonusas] d16 | C152: 100 | D152: vnt. | E152: 1.05 | F152: =IF(ISBLANK(E152),"", PRODUCT(C152,E152)) -> 105 | G152: Eurokonusas d16
A153: 1.62.1. | B153: Antgalis [eurokonusas] d16 | H153: Mežiaga: žalvaris. Sriegiai atitinka ISO 2528. Max. temp. +90. Max. slėgis PN 8-10.
A154: 1.63. | B154: Antgalis [eurokonusas] d18 | C154: 100 | D154: vnt. | E154: 1.05 | F154: =IF(ISBLANK(E154),"", PRODUCT(C154,E154)) -> 105 | G154: Eurokonusas d18
A155: 1.63.1. | B155: Antgalis [eurokonusas] d18 | H155: Mežiaga: žalvaris. Sriegiai atitinka ISO 2528. Max. temp. +90. Max. slėgis PN 8-10.
A156: 1.64. | B156: Antgalis [eurokonusas] d20 | C156: 100 | D156: vnt. | E156: 1.05 | F156: =IF(ISBLANK(E156),"", PRODUCT(C156,E156)) -> 105 | G156: Eurokonusas d20
A157: 1.64.1. | B157: Antgalis [eurokonusas] d20 | H157: Mežiaga: žalvaris. Sriegiai atitinka ISO 2528. Max. temp. +90. Max. slėgis PN 8-10.
A158: 1.65. | B158: Antgalis išoriniu sriegiu daugiasluoksniam vamzdžiui 16x1/2" | C158: 100 | D158: vnt. | E158: 0.66 | F158: =IF(ISBLANK(E158),"", PRODUCT(C158,E158)) -> 66 | G158: TIESI JUNGTIS SU IŠOR.SR.16X1/2
A159: 1.65.1. | B159: Turi tikti objektui 1.1 | H159: Mežiaga: žalvaris. Sriegiai atitinka ISO 2528. Max. temp. +90. Max. slėgis PN 8-10.
A160: 1.66. | B160: Antgalis išoriniu sriegiu daugiasluoksniam vamzdžiui 16x1/2" presuojama | C160: 100 | D160: vnt. | E160: 1.31 | F160: =IF(ISBLANK(E160),"", PRODUCT(C160,E160)) -> 131 | G160: PRES. JUNGTIS IŠ. SR. 16X1/2
A161: 1.66.1. | B161: Turi tikti objektui 1.1 | H161: Mežiaga: žalvaris. Atitinka standartą ISO 21003 Max. temp.: -20 / +90. Max. slėgis PN10.
A162: 1.67. | B162: Antgalis išoriniu sriegiu daugiasluoksniam vamzdžiui 16x3/4" | C162: 100 | D162: vnt. | E162: 1.35 | F162: =IF(ISBLANK(E162),"", PRODUCT(C162,E162)) -> 135 | G162: TIESI JUNGTIS SU IŠOR.SR.16X3/4
A163: 1.67.1. | B163: Turi tikti objektui 1.1 | H163: Mežiaga: žalvaris. Atitinka standartą ISO 21003 Max. temp.: -20 / +90. Max. slėgis PN10.
A164: 1.68. | B164: Antgalis išoriniu sriegiu daugiasluoksniam vamzdžiui 16x3/4" presuojama | C164: 100 | D164: vnt. | E164: 1.85 | F164: =IF(ISBLANK(E164),"", PRODUCT(C164,E164)) -> 185 | G164: PRES. JUNGTIS IŠ. SR. 16X3/4
A165: 1.68.1. | B165: Turi tikti objektui 1.5 | H165: Mežiaga: žalvaris. Atitinka standartą ISO 21003 Max. temp.: -20 / +90. Max. slėgis PN10.
A166: 1.69. | B166: Antgalis išoriniu sriegiu daugiasluoksniam vamzdžiui 18x1/2" | C166: 100 | D166: vnt. | E166: 0.9 | F166: =IF(ISBLANK(E166),"", PRODUCT(C166,E166)) -> 90 | G166: TIESI JUNGTIS SU IŠOR.SR.18x1/2
A167: 1.69.1. | B167: Turi tikti objektui 1.5 | H167: Mežiaga: žalvaris. Sriegiai atitinka ISO 2528. Max. temp. +90. Max. slėgis PN 8-10.
A168: 1.70. | B168: Antgalis išoriniu sriegiu daugiasluoksniam vamzdžiui 18x1/2" presuojama | C168: 100 | D168: vnt. | E168: 1.4 | F168: =IF(ISBLANK(E168),"", PRODUCT(C168,E168)) -> 140 | G168: PRES. JUNGTIS IŠ. SR. 18X1/2
A169: 1.70.1. | B169: Turi tikti objektui 1.5 | H169: Mežiaga: žalvaris. Atitinka standartą ISO 21003 Max. temp.: -20 / +90. Max. slėgis PN10.
A170: 1.71. | B170: Antgalis išoriniu sriegiu daugiasluoksniam vamzdžiui 18x3/4" | C170: 100 | D170: vnt. | E170: 1.42 | F170: =IF(ISBLANK(E170),"", PRODUCT(C170,E170)) -> 142 | G170: TIESI JUNGTIS SU IŠOR.SR.18X3/4
A171: 1.71.1. | B171: Turi tikti objektui 1.5 | H171: Mežiaga: žalvaris. Sriegiai atitinka ISO 2528. Max. temp. +90. Max. slėgis PN 8-10.
A172: 1.72. | B172: Antgalis išoriniu sriegiu daugiasluoksniam vamzdžiui 18x3/4" presuojama | C172: 100 | D172: vnt. | E172: 1.84 | F172: =IF(ISBLANK(E172),"", PRODUCT(C172,E172)) -> 184 | G172: PRES. JUNGTIS IŠ. SR. 18X3/4
A173: 1.72.1. | B173: Turi tikti objektui 1.5 | H173: Mežiaga: žalvaris. Atitinka standartą ISO 21003 Max. temp.: -20 / +90. Max. slėgis PN10.
A174: 1.73. | B174: Antgalis išoriniu sriegiu daugiasluoksniam vamzdžiui 20x1/2" | C174: 100 | D174: vnt. | E174: 1.07 | F174: =IF(ISBLANK(E174),"", PRODUCT(C174,E174)) -> 107 | G174: TIESI JUNGTIS SU IŠOR.SR.20X1/2
A175: 1.73.1. | B175: Turi tikti objektui 1.2 | H175: Mežiaga: žalvaris. Sriegiai atitinka ISO 2528. Max. temp. +90. Max. slėgis PN 8-10.
A176: 1.74. | B176: Antgalis išoriniu sriegiu daugiasluoksniam vamzdžiui 20x1/2" presuojama | C176: 100 | D176: vnt. | E176: 1.48 | F176: =IF(ISBLANK(E176),"", PRODUCT(C176,E176)) -> 148 | G176: PRES. JUNGTIS IŠ. SR. 20X1/2
A177: 1.74.1. | B177: Turi tikti objektui 1.2 | H177: Mežiaga: žalvaris. Atitinka standartą ISO 21003 Max. temp.: -20 / +90. Max. slėgis PN10.
A178: 1.75. | B178: Antgalis išoriniu sriegiu daugiasluoksniam vamzdžiui 20x3/4" | C178: 100 | D178: vnt. | E178: 1.13 | F178: =IF(ISBLANK(E178),"", PRODUCT(C178,E178)) -> 113 | G178: TIESI JUNGTIS SU IŠOR.SR.20X3/4
A179: 1.75.1. | B179: Turi tikti objektui 1.2 | H179: Mežiaga: žalvaris. Sriegiai atitinka ISO 2528. Max. temp. +90. Max. slėgis PN 8-10.
A180: 1.76. | B180: Antgalis išoriniu sriegiu daugiasluoksniam vamzdžiui 20x3/4" presuojama | C180: 100 | D180: vnt. | E180: 1.95 | F180: =IF(ISBLANK(E180),"", PRODUCT(C180,E180)) -> 195 | G180: PRES. JUNGTIS IŠ. SR. 20X3/4
A181: 1.76.1. | B181: Turi tikti objektui 1.2 | H181: Mežiaga: žalvaris. Atitinka standartą ISO 21003 Max. temp.: -20 / +90. Max. slėgis PN10.
A182: 1.77. | B182: Antgalis išoriniu sriegiu daugiasluoksniam vamzdžiui 26x3/4" | C182: 100 | D182: vnt. | E182: 3.25 | F182: =IF(ISBLANK(E182),"", PRODUCT(C182,E182)) -> 325 | G182: Tiesi jungtis iš sr 26*3/4
A183: 1.77.1. | B183: Turi tikti objektui 1.3 | H183: Mežiaga: žalvaris. Atitinka standartą ISO 21003 Max. temp.: -20 / +90. Max. slėgis PN10
A184: 1.78. | B184: Antgalis išoriniu sriegiu daugiasluoksniam vamzdžiui 26x3/4" presuojama | C184: 100 | D184: vnt. | E184: 2.7 | F184: =IF(ISBLANK(E184),"", PRODUCT(C184,E184)) -> 270 | G184: PRES. JUNGTIS IŠ. SR. 26X3/4
A185: 1.78.1. | B185: Turi tikti objektui 1.3 | H185: Mežiaga: žalvaris. Atitinka standartą ISO 21003 Max. temp.: -20 / +90. Max. slėgis PN10.
A186: 1.79. | B186: Antgalis išoriniu sriegiu daugiasluoksniam vamzdžiui 26x4/4" | C186: 100 | D186: vnt. | E186: 3.4 | F186: =IF(ISBLANK(E186),"", PRODUCT(C186,E186)) -> 340 | G186: TIESI JUNGTIS IŠ SR 26*1
A187: 1.79.1. | B187: Turi tikti objektui 1.3 | H187: Mežiaga: žalvaris. Atitinka standartą ISO 21003 Max. temp.: -20 / +90. Max. slėgis PN10.
A188: 1.80. | B188: Antgalis išoriniu sriegiu daugiasluoksniam vamzdžiui 26x4/4" presuojama | C188: 100 | D188: vnt. | E188: 3.3 | F188: =IF(ISBLANK(E188),"", PRODUCT(C188,E188)) -> 330 | G188: PRES. JUNGTIS IŠ. SR. 26X1
A189: 1.80.1. | B189: Turi tikti objektui 1.3 | H189: Mežiaga: žalvaris. Atitinka standartą ISO 21003 Max. temp.: -20 / +90. Max. slėgis PN10.
A190: 1.81. | B190: PVC trišakis 16x1/2"x16 suveržiamas sriegis-metrinis-vidinis | C190: 160 | D190: vnt. | E190: 1.88 | F190: =IF(ISBLANK(E190),"", PRODUCT(C190,E190)) -> 300.8 | G190: TRIŠAKIS VID.SR.16X1/2
A191: 1.81.1. | B191: PVC trišakis 16x1/2"x16 suveržiamas sriegis-metrinis-vidinis | H191: Mežiaga: žalvaris. Sriegiai atitinka ISO 2528. Max. temp. +90. Max. slėgis PN 8-10.
A192: 1.82. | B192: PVC trišakis 16x1/2"x16 suveržiamas sriegis-metrinis-vidinis presuojamas | C192: 160 | D192: vnt. | E192: 4.89 | F192: =IF(ISBLANK(E192),"", PRODUCT(C192,E192)) -> 782.4 | G192: TRIŠAKIS VID. SR. 16X1/2X16 PPSU/WAVIN 275011000
A193: 1.82.1. | B193: PVC trišakis 16x1/2"x16 suveržiamas sriegis-metrinis-vidinis presuojamas | H193: Mežiaga: polifenilsulfonas (PPSU). Sistema atitinka LST EN 21003 standartą. Max. temp. +95. Max. slėgis PN10.
A194: 1.83. | B194: PVC trišakis 20x1/2"x20 suveržiamas sriegis-metrinis-vidinis | C194: 140 | D194: vnt. | E194: 2.8 | F194: =IF(ISBLANK(E194),"", PRODUCT(C194,E194)) -> 392 | G194: TRIŠAKIS VID.SR.20X1/2
A195: 1.83.1. | B195: PVC trišakis 20x1/2"x20 suveržiamas sriegis-metrinis-vidinis | H195: Mežiaga: žalvaris. Sriegiai atitinka ISO 2528. Max. temp. +90. Max. slėgis PN 8-10.
A196: 1.84. | B196: PVC trišakis 20x1/2"x20 suveržiamas sriegis-metrinis-vidinis presuojamas | C196: 140 | D196: vnt. | E196: 6.35 | F196: =IF(ISBLANK(E196),"", PRODUCT(C196,E196)) -> 889 | G196: TRIŠAKIS VID. SR. 20X1/2X20 PPSU/WAVIN 275011030
A197: 1.84.1. | B197: PVC trišakis 20x1/2"x20 suveržiamas sriegis-metrinis-vidinis presuojamas | H197: Mežiaga: polifenilsulfonas (PPSU). Sistema atitinka LST EN 21003 standartą. Max. temp. +95. Max. slėgis PN10.
A198: 1.85. | B198: PVC trišakis 20x20x20 suveržiamas | C198: 130 | D198: vnt. | E198: 3.23 | F198: =IF(ISBLANK(E198),"", PRODUCT(C198,E198)) -> 419.9 | G198: TRIŠAKIS 20X20X20
A199: 1.85.1. | B199: PVC trišakis 20x20x20 suveržiamas | H199: Mežiaga: žalvaris. Sriegiai atitinka ISO 2528. Max. temp. +90. Max. slėgis PN 8-10.
A200: 1.86. | B200: PVC trišakis 20x20x20 suveržiamas presuojamas | C200: 130 | D200: vnt. | E200: 3.82 | F200: =IF(ISBLANK(E200),"", PRODUCT(C200,E200)) -> 496.6 | G200: TRIŠAKIS 20X20X20 PPSU/WAVIN 275022100
A201: 1.86.1. | B201: PVC trišakis 20x20x20 suveržiamas presuojamas | H201: Mežiaga: polifenilsulfonas (PPSU). Sistema atitinka LST EN 21003 standartą. Max. temp. +95. Max. slėgis PN10.
A202: 1.87. | B202: Trišakis B-1diam. 1/2' [vidinis] , bronzinis, užveržiamas, atitinkantis 16mm daugiasluoksnio vamzdžio diametrą | C202: 140 | D202: vnt. | E202: 1.88 | F202: =IF(ISBLANK(E202),"", PRODUCT(C202,E202)) -> 263.2 | G202: TRIŠAKIS VID.SR.16X1/2
A203: 1.87.1. | B203: Trišakis B-1diam. 1/2' [vidinis] , bronzinis, užveržiamas, atitinkantis 16mm daugiasluoksnio vamzdžio diametrą | H203: Mežiaga: žalvaris. Sriegiai atitinka ISO 2528. Max. temp. +90. Max. slėgis PN 8-10.
A204: 1.88. | B204: Trišakis B-1diam. 1/2' [vidinis] , presuojamas, atitinkantis 18mm daugiasluoksnio vamzdžio diametrą | C204: 140 | D204: vnt. | E204: 3.38 | F204: =IF(ISBLANK(E204),"", PRODUCT(C204,E204)) -> 473.2 | G204: PRES. TRIŠAKIS VID. SR. 18X1/2X18
A205: 1.88.1. | B205: Trišakis B-1diam. 1/2' [vidinis] , presuojamas, atitinkantis 18mm daugiasluoksnio vamzdžio diametrą | H205: Mežiaga: žalvaris. Atitinka standartą ISO 21003 Max. temp.: -20 / +90. Max. slėgis PN10.
A206: 1.89. | B206: Trišakis B-1diam. 1/2' [vidinis] , presuojamas, atitinkantis 26mm daugiasluoksnio vamzdžio diametrą | C206: 140 | D206: vnt. | E206: 6.15 | F206: =IF(ISBLANK(E206),"", PRODUCT(C206,E206)) -> 861 | G206: PRES.TRIŠAKIS VID 26X1/2X26
A207: 1.89.1. | B207: Trišakis B-1diam. 1/2' [vidinis] , presuojamas, atitinkantis 26mm daugiasluoksnio vamzdžio diametrą | H207: =$H$205 -> Mežiaga: žalvaris. Atitinka standartą ISO 21003 Max. temp.: -20 / +90. Max. slėgis PN10.
A208: 1.90. | B208: Trišakis B-1diam. 1/2' [vidinis] , bronzinis, užveržiamas, atitinkantis 20mm daugiasluoksnio vamzdžio diametrą | C208: 140 | D208: vnt. | E208: 2.8 | F208: =IF(ISBLANK(E208),"", PRODUCT(C208,E208)) -> 392 | G208: TRIŠAKIS VID.SR.20X1/2
A209: 1.90.1. | B209: Trišakis B-1diam. 1/2' [vidinis] , bronzinis, užveržiamas, atitinkantis 20mm daugiasluoksnio vamzdžio diametrą | H209: Mežiaga: žalvaris. Sriegiai atitinka ISO 2528. Max. temp. +90. Max. slėgis PN 8-10.
A210: 1.91. | B210: Trišakis pereinamas [vidus]16x1/2"x16 bronzinis,suveržiamas | C210: 130 | D210: vnt. | E210: 1.88 | F210: =IF(ISBLANK(E210),"", PRODUCT(C210,E210)) -> 244.4 | G210: TRIŠAKIS VID.SR.16X1/2
A211: 1.91.1. | B211: Trišakis pereinamas [vidus] 16x1/2"x16 bronzinis ,suveržiamas | H211: Mežiaga: žalvaris. Sriegiai atitinka ISO 2528. Max. temp. +90. Max. slėgis PN 8-10.
... 906 more rows

Sheet Subtiekėjai
A2: Subtiekėjai ir jiems perduodama vykdyti pirkimo sutarties dalis:
A4: Eil. Nr | C4: Subtiekėjo pavadinimas | F4: Pirkimo objekto dalies, perduodamos vykdyti subtiekėjui, aprašymas | I4: Procentas perduodamos vykdyti pirkimo objekto dalies nuo pasiūlymo kainos su PVM (pildoma, jei ūkio subjektas vykdys sutartį)
A11: Kartu su pasiūlymu pateikiami šie dokumentai:
A13: Eil.Nr. | B13: Dokumentas | E13: Ar dokumnetas konfidencialus? (Taip/Ne) | G13: Prisegtos bylos (failo) pavadinimas | I13: Paaiškinimas, kokia konkreti informacija dokumente yra konfidenciali
A14: 1. | B14: EBVPD | E14: Taip | G14: EBVPD | I14: Asmens duomenys
A15: 2. | B15: Tiekėjo deklaracija | E15: Ne | G15: Tiekėjo deklaracija
A16: 3. | B16: V. Povilaičio įgaliojimas | E16: Taip | G16: V. Povilaičio įgaliojimas | I16: Asmens duomenys
A20: Pasirašydamas šį pasiūlymą, tvirtintu, kad: 1) pasiūlymo dokumentuose pateikti duomenys yra tikri; 2) siūlomas Pirkimo objektas visiškai atitinka Pirkimo dokumentuose nustatytus reikalavimus; 3) sutinku su visomis Pirkimo dokumentuose nustatytomis sąlygomis; 4) pasiūlymas galioja iki termino, nustatyto Pirkimo dokumentuose; 5) mes esame / nesame (nereikalingą išbraukti) laikomi asocijuotais (susijusiais) su Perkančiuoju subjektu pagal Lietuvos Respublikoje galiojančių teisės aktų (Lietuvos Respublikos pelno mokesčio, Lietuvos Respublikos pridėtinės vertės mokesčio ir Lietuvos Respublikos gyventojų pajamų mokesčio įstatymų) nuostatas; 6) savo pasiūlymo galiojimą užtikrinsiu pagal Specialiųjų sąlygų 6.1 punktą (jei taikoma).
A22: Pasiūlymo galiojimo užtikrinimui pateikiame :
A23: Nereikalaujama pasiūlymo galiojimo užtikrinimo
A24: (Nurodyti užtikrinimo būdą, dydį, dokumentus)
A26: Pasiūlymas galioja iki termino, nustatyto pirkimo dokumentuose. Pasiūlymo neatskiriama dalis yra (rašoma, jeigu buvo reikalauta prie pasiūlymo pridėti atitinkamą dokumentą)
A30: Tiekėjo arba jo įgalioto asmens pareigų pavadinimas | E30: Komercijos direktorius
A33: Pasirašančio asmens vardas ir pavardė | E33: Vaidas Povilaitis
A100: 2776 2019-07-22 10:57:33
